[Event "*** Titled Tuesday Blitz"]
[Site "Chess.com"]
[Date "2019.04.02"]
[Round "2"]
[White "RayRobson"]
[Black "iLuusions"]
[Result "0-1"]
[WhiteElo "2834"]
[BlackElo "2616"]
[TimeControl "180+2"]
[EndTime "14:25:58 PDT"]
[Termination "iLuusions won by checkmate"]

1. e4 {[%clk 0:03:01.9]} 1... e6 {[%clk 0:02:59.8]} 2. d4 {[%clk 0:03:02.7]}
2... d5 {[%clk 0:03:01.7]} 3. Nc3 {[%clk 0:03:04.1]} 3... dxe4 {[%clk
0:03:03.6]} 4. Nxe4 {[%clk 0:03:05.2]} 4... Nd7 {[%clk 0:03:04.6]} 5. Nf3 {[%clk
0:03:06.3]} 5... Ngf6 {[%clk 0:03:05.9]} 6. Nxf6+ {[%clk 0:03:06.3]} 6... Nxf6
{[%clk 0:03:06.9]} 7. Be3 {[%clk 0:03:07.4]} 7... Nd5 {[%clk 0:02:59.6]} 8. Bd2
{[%clk 0:03:06.5]} 8... c5 {[%clk 0:03:00.2]} 9. Bb5+ {[%clk 0:03:06.6]} 9...
Bd7 {[%clk 0:02:59]} 10. Bxd7+ {[%clk 0:03:07.4]} 10... Qxd7 {[%clk 0:03:00.9]}
11. c4 {[%clk 0:03:07.1]} 11... Nb6 {[%clk 0:02:58.1]} 12. Rc1 {[%clk
0:02:54.3]} 12... Rc8 {[%clk 0:02:51]} 13. dxc5 {[%clk 0:02:42]} 13... Bxc5
{[%clk 0:02:51.1]} 14. b4 {[%clk 0:02:41.6]} 14... Be7 {[%clk 0:02:47.2]} 15. c5
{[%clk 0:02:40.1]} 15... Nd5 {[%clk 0:02:15.1]} 16. Ne5 {[%clk 0:02:40.2]} 16...
Qc7 {[%clk 0:02:16.2]} 17. Qa4+ {[%clk 0:02:39.6]} 17... Kf8 {[%clk 0:02:17.4]}
18. Nc4 {[%clk 0:02:35.3]} 18... a6 {[%clk 0:01:00.1]} 19. O-O {[%clk
0:02:33.7]} 19... h5 {[%clk 0:01:01.3]} 20. Qb3 {[%clk 0:02:24.1]} 20... h4
{[%clk 0:00:57.4]} 21. h3 {[%clk 0:02:25.2]} 21... Kg8 {[%clk 0:00:58.1]} 22.
Rfe1 {[%clk 0:01:55.3]} 22... Rh5 {[%clk 0:00:58.4]} 23. a4 {[%clk 0:01:49.4]}
23... Rd8 {[%clk 0:00:57.5]} 24. Rc2 {[%clk 0:01:33.3]} 24... Nf4 {[%clk
0:00:53.3]} 25. Bxf4 {[%clk 0:01:03.5]} 25... Qxf4 {[%clk 0:00:52.4]} 26. Na5
{[%clk 0:00:33]} 26... Rd7 {[%clk 0:00:13]} 27. Rc4 {[%clk 0:00:19.2]} 27... Qd2
{[%clk 0:00:13.2]} 28. Rcc1 {[%clk 0:00:18.4]} 28... Rhd5 {[%clk 0:00:14.1]} 29.
Nc4 {[%clk 0:00:18.6]} 29... Qf4 {[%clk 0:00:14.8]} 30. Nb6 {[%clk 0:00:18.8]}
30... Rd3 {[%clk 0:00:15.5]} 31. Qb1 {[%clk 0:00:05.1]} 31... R7d4 {[%clk
0:00:15.7]} 32. b5 {[%clk 0:00:06.3]} 32... axb5 {[%clk 0:00:15.5]} 33. axb5
{[%clk 0:00:08.2]} 33... Rd2 {[%clk 0:00:17]} 34. Rf1 {[%clk 0:00:09.8]} 34...
Bf6 {[%clk 0:00:16.9]} 35. Rce1 {[%clk 0:00:06.7]} 35... Be5 {[%clk 0:00:17.7]}
36. Rxe5 {[%clk 0:00:07.8]} 36... Qxe5 {[%clk 0:00:19.6]} 37. c6 {[%clk
0:00:08.6]} 37... bxc6 {[%clk 0:00:21]} 38. bxc6 {[%clk 0:00:10.5]} 38... Qc7
{[%clk 0:00:21.5]} 39. Nd7 {[%clk 0:00:11.1]} 39... Qxc6 {[%clk 0:00:17.2]} 40.
Qb8+ {[%clk 0:00:11]} 40... Kh7 {[%clk 0:00:18.7]} 41. Nf8+ {[%clk 0:00:10.3]}
41... Kh6 {[%clk 0:00:19.7]} 42. Qe5 {[%clk 0:00:07.3]} 42... Qd5 {[%clk
0:00:17.1]} 43. Qe3+ {[%clk 0:00:04.9]} 43... Qg5 {[%clk 0:00:18.2]} 44. Qf3
{[%clk 0:00:04.9]} 44... Qf6 {[%clk 0:00:14]} 45. Qe3+ {[%clk 0:00:05.6]} 45...
Qf4 {[%clk 0:00:15]} 46. Qb3 {[%clk 0:00:06.7]} 46... Rd8 {[%clk 0:00:15.4]} 47.
Qa3 {[%clk 0:00:04.9]} 47... Qd6 {[%clk 0:00:14.5]} 48. Qe3+ {[%clk 0:00:05.8]}
48... g5 {[%clk 0:00:15.5]} 49. f4 {[%clk 0:00:06.2]} 49... Qxf8 {[%clk
0:00:16.5]} 50. fxg5+ {[%clk 0:00:06.9]} 50... Kh7 {[%clk 0:00:10.5]} 51. Qe4+
{[%clk 0:00:06.2]} 51... Kg8 {[%clk 0:00:11.7]} 52. g6 {[%clk 0:00:05.9]} 52...
f6 {[%clk 0:00:10.7]} 53. Qxh4 {[%clk 0:00:03.5]} 53... Qg7 {[%clk 0:00:09.4]}
54. Rxf6 {[%clk 0:00:04.3]} 54... Rd1+ {[%clk 0:00:10.7]} 55. Kh2 {[%clk
0:00:05.3]} 55... Qc7+ {[%clk 0:00:12.3]} 56. Rf4 {[%clk 0:00:04.8]} 56... R8d4
{[%clk 0:00:12.7]} 57. Qh7+ {[%clk 0:00:03]} 57... Qxh7 {[%clk 0:00:13.3]} 58.
gxh7+ {[%clk 0:00:04.9]} 58... Kxh7 {[%clk 0:00:15.1]} 59. Rf6 {[%clk
0:00:06.7]} 59... e5 {[%clk 0:00:14.9]} 60. Re6 {[%clk 0:00:07.7]} 60... Re4
{[%clk 0:00:15.7]} 61. Kg3 {[%clk 0:00:05.1]} 61... Kg7 {[%clk 0:00:17]} 62. Kf3
{[%clk 0:00:05.9]} 62... Rde1 {[%clk 0:00:17.7]} 63. g3 {[%clk 0:00:04.6]} 63...
Kf7 {[%clk 0:00:18.9]} 64. Ra6 {[%clk 0:00:05.1]} 64... R1e3+ {[%clk 0:00:19.2]}
65. Kg2 {[%clk 0:00:06.4]} 65... Rc4 {[%clk 0:00:19.9]} 66. h4 {[%clk
0:00:06.6]} 66... Rcc3 {[%clk 0:00:20.4]} 67. h5 {[%clk 0:00:03.7]} 67... Rxg3+
{[%clk 0:00:21]} 68. Kf2 {[%clk 0:00:05.4]} 68... Rh3 {[%clk 0:00:22.3]} 69. h6
{[%clk 0:00:05.1]} 69... Rc2+ {[%clk 0:00:23.3]} 70. Kg1 {[%clk 0:00:06.2]}
70... Rb3 {[%clk 0:00:24.4]} 71. Ra1 {[%clk 0:00:05.7]} 71... Kg6 {[%clk
0:00:25.6]} 72. Re1 {[%clk 0:00:06.2]} 72... Kxh6 {[%clk 0:00:26.2]} 73. Kh1
{[%clk 0:00:07.4]} 73... Kg6 {[%clk 0:00:27.5]} 74. Kg1 {[%clk 0:00:07.5]} 74...
Kf5 {[%clk 0:00:28.7]} 75. Kh1 {[%clk 0:00:08]} 75... e4 {[%clk 0:00:30.2]} 76.
Kg1 {[%clk 0:00:09]} 76... Kf4 {[%clk 0:00:29.4]} 77. Kh1 {[%clk 0:00:09]} 77...
e3 {[%clk 0:00:30.8]} 78. Kg1 {[%clk 0:00:09.9]} 78... Kf3 {[%clk 0:00:32.2]}
79. Kf1 {[%clk 0:00:07.8]} 79... Rf2+ {[%clk 0:00:32.5]} 80. Kg1 {[%clk
0:00:09]} 80... Rd3 {[%clk 0:00:33.7]} 81. Kh1 {[%clk 0:00:06.3]} 81... e2
{[%clk 0:00:34.4]} 82. Rg1 {[%clk 0:00:02.5]} 82... Rd1 {[%clk 0:00:32.4]} 83.
Rf1 {[%clk 0:00:02.5]} 83... Rdxf1# {[%clk 0:00:32.9]} 0-1

[Event "*** Titled Tuesday Blitz"]
[Site "Chess.com"]
[Date "2019.04.02"]
[Round "2"]
[White "Satscho"]
[Black "advantageLucy"]
[Result "0-1"]
[WhiteElo "2301"]
[BlackElo "2498"]
[TimeControl "180+2"]
[EndTime "14:26:07 PDT"]
[Termination "advantageLucy won by resignation"]

1. e4 {[%clk 0:03:01.9]} 1... e6 {[%clk 0:03:00.9]} 2. d4 {[%clk 0:03:02.1]}
2... d5 {[%clk 0:03:02]} 3. exd5 {[%clk 0:03:04]} 3... exd5 {[%clk 0:03:03.6]}
4. Nf3 {[%clk 0:03:05]} 4... Nc6 {[%clk 0:03:03]} 5. Bb5 {[%clk 0:02:50.4]} 5...
Bd6 {[%clk 0:02:56.3]} 6. O-O {[%clk 0:02:49.4]} 6... Ne7 {[%clk 0:02:57.1]} 7.
Re1 {[%clk 0:02:47.5]} 7... O-O {[%clk 0:02:57.5]} 8. c3 {[%clk 0:02:41.1]} 8...
Bf5 {[%clk 0:02:55.6]} 9. Bd3 {[%clk 0:02:40.5]} 9... h6 {[%clk 0:02:54.2]} 10.
Bxf5 {[%clk 0:02:35.2]} 10... Nxf5 {[%clk 0:02:56.1]} 11. Nbd2 {[%clk
0:02:36.7]} 11... Qf6 {[%clk 0:02:55.2]} 12. Nf1 {[%clk 0:02:36.4]} 12... Rae8
{[%clk 0:02:51.8]} 13. Ng3 {[%clk 0:02:37]} 13... Nxg3 {[%clk 0:02:21.1]} 14.
hxg3 {[%clk 0:02:38.3]} 14... Rxe1+ {[%clk 0:02:16.9]} 15. Qxe1 {[%clk
0:02:40.2]} 15... Ne7 {[%clk 0:02:12.4]} 16. g4 {[%clk 0:02:28.9]} 16... Ng6
{[%clk 0:01:55.9]} 17. g5 {[%clk 0:02:25.8]} 17... hxg5 {[%clk 0:01:57.3]} 18.
Bxg5 {[%clk 0:02:27.7]} 18... Qf5 {[%clk 0:01:57]} 19. Qd2 {[%clk 0:02:26.4]}
19... f6 {[%clk 0:01:56.1]} 20. Be3 {[%clk 0:02:25.5]} 20... Re8 {[%clk
0:01:57]} 21. Re1 {[%clk 0:02:25.9]} 21... Re4 {[%clk 0:01:58.2]} 22. b3 {[%clk
0:02:16.4]} 22... c6 {[%clk 0:01:57.5]} 23. c4 {[%clk 0:02:17.1]} 23... Rg4
{[%clk 0:01:41.8]} 24. Qe2 {[%clk 0:02:05.7]} 24... Qh5 {[%clk 0:01:32.9]} 25.
cxd5 {[%clk 0:01:52.3]} 25... cxd5 {[%clk 0:01:34.8]} 26. g3 {[%clk 0:01:03.2]}
26... Re4 {[%clk 0:00:39]} 27. Nd2 {[%clk 0:00:51.6]} 27... Qxe2 {[%clk
0:00:38.2]} 28. Rxe2 {[%clk 0:00:53.5]} 28... Re7 {[%clk 0:00:39]} 29. Kg2
{[%clk 0:00:31.6]} 29... Rc7 {[%clk 0:00:40]} 30. Nf1 {[%clk 0:00:28.9]} 30...
Ne7 {[%clk 0:00:39.3]} 31. Bf4 {[%clk 0:00:24.8]} 31... Bxf4 {[%clk 0:00:40.1]}
32. gxf4 {[%clk 0:00:26.7]} 32... Nf5 {[%clk 0:00:41.5]} 33. Ne3 {[%clk
0:00:22.4]} 33... Nxd4 {[%clk 0:00:41.1]} 34. Rd2 {[%clk 0:00:24.1]} 34... Ne6
{[%clk 0:00:42.4]} 35. Nxd5 {[%clk 0:00:22.9]} 35... Rc5 {[%clk 0:00:41.2]} 36.
Kf3 {[%clk 0:00:22.4]} 36... Kf7 {[%clk 0:00:41.1]} 37. Ne3 {[%clk 0:00:20.7]}
37... Rh5 {[%clk 0:00:38.9]} 38. Rd7+ {[%clk 0:00:21.7]} 38... Ke8 {[%clk
0:00:39.7]} 39. Rxb7 {[%clk 0:00:23.6]} 39... Rh3+ {[%clk 0:00:41]} 40. Ke2
{[%clk 0:00:25]} 40... Nxf4+ {[%clk 0:00:42.2]} 41. Kd2 {[%clk 0:00:26.7]} 41...
g5 {[%clk 0:00:41.7]} 42. Rxa7 {[%clk 0:00:27.4]} 42... Rh2 {[%clk 0:00:43.2]}
43. Nd1 {[%clk 0:00:27.8]} 43... g4 {[%clk 0:00:43.6]} 44. Ke3 {[%clk
0:00:28.6]} 44... Nd5+ {[%clk 0:00:40.8]} 45. Ke4 {[%clk 0:00:29.9]} 45... Nb4
{[%clk 0:00:40.3]} 46. a3 {[%clk 0:00:30]} 46... Nc2 {[%clk 0:00:41.2]} 47. b4
{[%clk 0:00:29.4]} 47... Rh1 {[%clk 0:00:40.4]} 48. Ne3 {[%clk 0:00:29.4]} 48...
Re1 {[%clk 0:00:41.1]} 49. b5 {[%clk 0:00:29.3]} 49... g3 {[%clk 0:00:41.7]} 50.
Kf3 {[%clk 0:00:18.3]} 50... gxf2 {[%clk 0:00:39.7]} 51. Kxf2 {[%clk 0:00:20.2]}
51... Rxe3 {[%clk 0:00:40.7]} 52. Rc7 {[%clk 0:00:21.8]} 52... Rxa3 {[%clk
0:00:33.3]} 53. Rxc2 {[%clk 0:00:22.6]} 53... Rb3 {[%clk 0:00:34.6]} 54. Rc5
{[%clk 0:00:23.8]} 54... Ke7 {[%clk 0:00:36.1]} 55. Rh5 {[%clk 0:00:24.2]} 55...
Ke6 {[%clk 0:00:36.7]} 56. Ke2 {[%clk 0:00:24.1]} 56... f5 {[%clk 0:00:36]} 57.
b6 {[%clk 0:00:25.2]} 57... Ke5 {[%clk 0:00:36.1]} 58. Rh6 {[%clk 0:00:26.5]}
58... Ke4 {[%clk 0:00:36.4]} 59. Re6+ {[%clk 0:00:27.5]} 59... Kd5 {[%clk
0:00:36.8]} 60. Rf6 {[%clk 0:00:28.6]} 60... Ke5 {[%clk 0:00:38.3]} 61. Rh6
{[%clk 0:00:29.3]} 61... f4 {[%clk 0:00:39.3]} 62. Rh5+ {[%clk 0:00:27.6]} 62...
Ke4 {[%clk 0:00:40.5]} 63. Rh6 {[%clk 0:00:29]} 63... Rb2+ {[%clk 0:00:41.7]}
64. Ke1 {[%clk 0:00:29.5]} 64... Ke3 {[%clk 0:00:41.5]} 65. Re6+ {[%clk
0:00:30.5]} 65... Kf3 {[%clk 0:00:42.9]} 66. Rg6 {[%clk 0:00:30.7]} 66... Rb1+
{[%clk 0:00:41.1]} 67. Kd2 {[%clk 0:00:32.1]} 67... Kf2 {[%clk 0:00:42.6]} 68.
Kd3 {[%clk 0:00:31.5]} 68... f3 {[%clk 0:00:42.9]} 69. Ke4 {[%clk 0:00:31.9]}
69... Rb4+ {[%clk 0:00:43.8]} 70. Kd3 {[%clk 0:00:33]} 70... Kf1 {[%clk
0:00:42.3]} 71. Kd2 {[%clk 0:00:30.5]} 71... f2 {[%clk 0:00:42.5]} 72. Kd1
{[%clk 0:00:30]} 72... Rd4+ {[%clk 0:00:42.8]} 73. Kc2 {[%clk 0:00:30.8]} 73...
Ke2 {[%clk 0:00:29.2]} 74. Re6+ {[%clk 0:00:26.8]} 74... Kf3 {[%clk 0:00:30.3]}
75. Rf6+ {[%clk 0:00:22.1]} 75... Kg3 {[%clk 0:00:29.7]} 76. Rg6+ {[%clk
0:00:23]} 76... Kf3 {[%clk 0:00:30.1]} 77. Rf6+ {[%clk 0:00:24.3]} 77... Ke2
{[%clk 0:00:30.3]} 78. Re6+ {[%clk 0:00:24.8]} 78... Kf1 {[%clk 0:00:31.3]} 79.
Rf6 {[%clk 0:00:21.5]} 79... Rc4+ {[%clk 0:00:31.4]} 80. Kd3 {[%clk 0:00:22.1]}
80... Rb4 {[%clk 0:00:31.8]} 81. Kc3 {[%clk 0:00:21.8]} 81... Rb5 {[%clk
0:00:32.3]} 82. Kc4 {[%clk 0:00:22.8]} 82... Rb2 {[%clk 0:00:32.5]} 83. Kc3
{[%clk 0:00:24.2]} 83... Rb5 {[%clk 0:00:33]} 84. Kc4 {[%clk 0:00:25.6]} 84...
Rb1 {[%clk 0:00:34.2]} 85. Kd3 {[%clk 0:00:25.8]} 85... Kg2 {[%clk 0:00:35.1]}
86. Rg6+ {[%clk 0:00:26.6]} 86... Kh3 {[%clk 0:00:36]} 87. Rh6+ {[%clk
0:00:27.3]} 87... Kg4 {[%clk 0:00:37.3]} 88. Rg6+ {[%clk 0:00:05.4]} 88... Kh5
{[%clk 0:00:38.4]} 89. Rf6 {[%clk 0:00:03.7]} 89... f1=Q+ {[%clk 0:00:39.4]} 90.
Rxf1 {[%clk 0:00:04.5]} 90... Rxf1 {[%clk 0:00:41.3]} 0-1

[Event "*** Titled Tuesday Blitz"]
[Site "Chess.com"]
[Date "2019.04.02"]
[Round "2"]
[White "VFernandezB"]
[Black "effefe"]
[Result "1/2-1/2"]
[WhiteElo "2181"]
[BlackElo "2250"]
[TimeControl "180+2"]
[EndTime "14:26:14 PDT"]
[Termination "Game drawn - insufficient material"]

1. d4 {[%clk 0:02:59.7]} 1... Nf6 {[%clk 0:03:00.3]} 2. Nf3 {[%clk 0:02:59.6]}
2... g6 {[%clk 0:03:00]} 3. g3 {[%clk 0:02:56.7]} 3... Bg7 {[%clk 0:02:56.3]} 4.
Bg2 {[%clk 0:02:58.6]} 4... O-O {[%clk 0:02:57.1]} 5. O-O {[%clk 0:02:58.3]}
5... d6 {[%clk 0:02:58.4]} 6. c4 {[%clk 0:02:57.8]} 6... Nc6 {[%clk 0:02:56.9]}
7. Nc3 {[%clk 0:02:58.2]} 7... Bf5 {[%clk 0:02:56]} 8. b3 {[%clk 0:02:35.1]}
8... e5 {[%clk 0:02:48.4]} 9. dxe5 {[%clk 0:02:07.9]} 9... dxe5 {[%clk 0:02:44]}
10. Bg5 {[%clk 0:02:01.3]} 10... h6 {[%clk 0:02:31.9]} 11. Qxd8 {[%clk
0:01:57.6]} 11... Raxd8 {[%clk 0:02:30.6]} 12. Bxf6 {[%clk 0:01:59.2]} 12...
Bxf6 {[%clk 0:02:30.6]} 13. Nd5 {[%clk 0:02:00.6]} 13... Bg7 {[%clk 0:02:26.5]}
14. Rad1 {[%clk 0:01:56.7]} 14... Rd7 {[%clk 0:02:09.3]} 15. Rd2 {[%clk
0:01:31.1]} 15... Nd4 {[%clk 0:01:43.4]} 16. Rfd1 {[%clk 0:01:06.4]} 16... c6
{[%clk 0:01:37.3]} 17. Ne3 {[%clk 0:01:03]} 17... Be6 {[%clk 0:01:24.7]} 18.
Nxd4 {[%clk 0:01:01.8]} 18... exd4 {[%clk 0:01:26.1]} 19. Nc2 {[%clk 0:01:01.5]}
19... Rfd8 {[%clk 0:01:26.6]} 20. Ne1 {[%clk 0:00:58.2]} 20... Bg4 {[%clk
0:01:14]} 21. Nd3 {[%clk 0:00:57.5]} 21... Re7 {[%clk 0:01:14.3]} 22. Re1 {[%clk
0:00:40.1]} 22... Rde8 {[%clk 0:01:14.9]} 23. Kf1 {[%clk 0:00:40.9]} 23... h5
{[%clk 0:01:14.3]} 24. h3 {[%clk 0:00:41.3]} 24... Bf5 {[%clk 0:01:15.4]} 25.
Red1 {[%clk 0:00:30.6]} 25... Bh6 {[%clk 0:01:11.7]} 26. Rc2 {[%clk 0:00:30.1]}
26... Kh7 {[%clk 0:00:55.6]} 27. b4 {[%clk 0:00:20.9]} 27... Bg7 {[%clk
0:00:44.8]} 28. Rb2 {[%clk 0:00:19.6]} 28... Be6 {[%clk 0:00:44.5]} 29. Rc2
{[%clk 0:00:20.2]} 29... Rc8 {[%clk 0:00:40.2]} 30. a3 {[%clk 0:00:19.8]} 30...
b5 {[%clk 0:00:39.8]} 31. cxb5 {[%clk 0:00:19]} 31... Bb3 {[%clk 0:00:40.8]} 32.
Rdc1 {[%clk 0:00:16.9]} 32... Bxc2 {[%clk 0:00:41.4]} 33. Rxc2 {[%clk
0:00:18.8]} 33... c5 {[%clk 0:00:36.2]} 34. bxc5 {[%clk 0:00:19.2]} 34... Bf8
{[%clk 0:00:33.3]} 35. a4 {[%clk 0:00:19.9]} 35... Rd7 {[%clk 0:00:31.9]} 36. c6
{[%clk 0:00:20.7]} 36... Rdc7 {[%clk 0:00:29]} 37. h4 {[%clk 0:00:21.5]} 37...
Be7 {[%clk 0:00:22.8]} 38. Bh3 {[%clk 0:00:22.5]} 38... Rb8 {[%clk 0:00:23.5]}
39. Nc5 {[%clk 0:00:22.1]} 39... Bxc5 {[%clk 0:00:24.4]} 40. Rxc5 {[%clk
0:00:24]} 40... Rd8 {[%clk 0:00:21]} 41. Bd7 {[%clk 0:00:20.3]} 41... Kg7 {[%clk
0:00:19.1]} 42. Rd5 {[%clk 0:00:20.9]} 42... Kf6 {[%clk 0:00:18.4]} 43. Rxd4
{[%clk 0:00:22.1]} 43... Ke5 {[%clk 0:00:19.6]} 44. e3 {[%clk 0:00:22.8]} 44...
f5 {[%clk 0:00:19.9]} 45. Ke2 {[%clk 0:00:23.9]} 45... Rb8 {[%clk 0:00:18]} 46.
Rb4 {[%clk 0:00:24.3]} 46... Kd6 {[%clk 0:00:17.7]} 47. a5 {[%clk 0:00:25.2]}
47... Kc5 {[%clk 0:00:19.2]} 48. b6 {[%clk 0:00:19.5]} 48... axb6 {[%clk
0:00:18.5]} 49. axb6 {[%clk 0:00:20.7]} 49... Rxb6 {[%clk 0:00:19.6]} 50. Rxb6
{[%clk 0:00:19.4]} 50... Kxb6 {[%clk 0:00:21.1]} 51. Kf3 {[%clk 0:00:20.8]}
51... Ra7 {[%clk 0:00:20.2]} 52. Kf4 {[%clk 0:00:21.9]} 52... Ra2 {[%clk
0:00:20]} 53. Kg5 {[%clk 0:00:21]} 53... Rxf2 {[%clk 0:00:21.5]} 54. Kxg6 {[%clk
0:00:22.3]} 54... Rf3 {[%clk 0:00:22.7]} 55. Bxf5 {[%clk 0:00:19.9]} 55... Rxg3+
{[%clk 0:00:22.5]} 56. Kxh5 {[%clk 0:00:20.9]} 56... Rxe3 {[%clk 0:00:24.4]} 57.
Bd7 {[%clk 0:00:20.3]} 57... Rg3 {[%clk 0:00:24.6]} 58. Kh6 {[%clk 0:00:21.4]}
58... Kc7 {[%clk 0:00:26]} 59. h5 {[%clk 0:00:22.6]} 59... Kd8 {[%clk
0:00:26.8]} 60. Kh7 {[%clk 0:00:24]} 60... Ke7 {[%clk 0:00:24.8]} 61. h6 {[%clk
0:00:24.8]} 61... Rg5 {[%clk 0:00:19.8]} 62. Kh8 {[%clk 0:00:24.8]} 62... Rg6
{[%clk 0:00:15.4]} 63. Kh7 {[%clk 0:00:19.8]} 63... Rg5 {[%clk 0:00:16.1]} 64.
Bc8 {[%clk 0:00:18.3]} 64... Kf6 {[%clk 0:00:07.4]} 65. Ba6 {[%clk 0:00:17.6]}
65... Rc5 {[%clk 0:00:07.3]} 66. Bb7 {[%clk 0:00:18.7]} 66... Kf7 {[%clk
0:00:06.2]} 67. Kh8 {[%clk 0:00:17.2]} 67... Rh5 {[%clk 0:00:04.9]} 68. Kh7
{[%clk 0:00:14.8]} 68... Rc5 {[%clk 0:00:06.5]} 69. Ba8 {[%clk 0:00:14.5]} 69...
Ra5 {[%clk 0:00:06.1]} 70. Bb7 {[%clk 0:00:12.7]} 70... Rc5 {[%clk 0:00:07.2]}
71. Ba8 {[%clk 0:00:14]} 71... Rc4 {[%clk 0:00:07.3]} 72. Bb7 {[%clk 0:00:12.9]}
72... Rc5 {[%clk 0:00:08.7]} 73. Ba8 {[%clk 0:00:14]} 73... Re5 {[%clk
0:00:06.4]} 74. Bb7 {[%clk 0:00:09]} 74... Re7 {[%clk 0:00:07.6]} 75. Bc8 {[%clk
0:00:08.8]} 75... Kf8+ {[%clk 0:00:08.4]} 76. Kh8 {[%clk 0:00:09.9]} 76... Re5
{[%clk 0:00:04.3]} 77. Bd7 {[%clk 0:00:08.7]} 77... Rh5 {[%clk 0:00:04.5]} 78.
Kh7 {[%clk 0:00:08.2]} 78... Rc5 {[%clk 0:00:05.2]} 79. Kg6 {[%clk 0:00:08.9]}
79... Kg8 {[%clk 0:00:04.1]} 80. Kf6 {[%clk 0:00:05.9]} 80... Kh7 {[%clk
0:00:04.2]} 81. Ke6 {[%clk 0:00:06.3]} 81... Kxh6 {[%clk 0:00:05.7]} 82. Kd6
{[%clk 0:00:07.8]} 82... Rc1 {[%clk 0:00:06.8]} 83. c7 {[%clk 0:00:09]} 83...
Rxc7 {[%clk 0:00:07.7]} 84. Kxc7 {[%clk 0:00:09.9]} 1/2-1/2